[Event "37th ECCC 2022"]
[Site "Mayrhofen"]
[Date "2022.10.03"]
[Round "1.34"]
[White "Tabernig, Bernhard"]
[Black "Maze, Sebastien"]
[Result "0-1"]
[ECO "E91"]
[WhiteElo "2310"]
[BlackElo "2530"]
[Annotator "TA"]
[PlyCount "208"]
[EventDate "2022.10.03"]
[EventType "team-tourn"]
[EventCountry "AUT"]
[SourceTitle "playchess.com"]
[Source "ChessBase"]
[SourceQuality "1"]
[TimeControl "40/5400+30:1800+30"]

{[%evp 23,208,22,42,19,42,27,29,7,6,0,0,4,10,-20,-1,0,-5,-8,0,-18,10,-74,0,-45,-10,-33,-6,-6,0,-77,-97,-86,8,-40,0,0,39,37,58,42,34,-39,-43,-35,22,20,29,0,0,0,0,0,0,-203,21,-70,-55,-66,-11,-95,-51,-79,-72,-83,0,0,0,0,0,0,0,0,0,-15,-7,-91,-79,-89,-87,-86,-79,-398,-19,-18,-29,-45,-37,-44,-18,-19,-19,-26,0,0,0,0,0,-602,-970,-979,-927,-693,-553,-1081,-994,-752,-634,-1089,-84,-84,0,0,0,0,0,0,0,0,0,0,0,0,0,0,0,0,0,0,0,0,0,0,0,0,0,0,0,0,0,0,0,0,0,0,0,0,0,0,0,0,0,0,0,0,0,0,0,0,0,0,0,0,0,0,0,0,0,-27999,0,0,0,0,0,0,0,0,0,0,0,-27996,-27996,-27997,-27996,-27997,-27996,-27998,-27998]} 1. d4 {[%emt 0:00:04]} Nf6 {[%emt 0:00:03]} 2. c4 {[%emt 0:00:05]} g6 {[%emt 0:00:03]} 3. Nc3 {[%emt 0:00:05]} Bg7 {[%emt 0:00:01]} 4. e4 {[%emt 0:00:05]} d6 {[%emt 0:00:04]} 5. Nf3 {[%emt 0:00:10]} O-O {[%emt 0:00:06]} 6. Be2 {[%emt 0:00:05]} Nbd7 {[%emt 0:00:05]} 7. O-O {[%emt 0:01:09]} e5 {[%emt 0:00:03]} 8. d5 {[%emt 0:02:55]} Nc5 {[%emt 0:00:16]} 9. Qc2 {[%emt 0:00:15]} a5 {[%emt 0:00:05]} 10. Bg5 {[%emt 0:01:10]} h6 {[%emt 0:00:03]} 11. Be3 {[%emt 0:00:45]} b6 {[%emt 0:00:05]} 12. Nd2 {[%emt 0:00:40]} Nh7 {[%emt 0:00:03]} 13. a3 {[%emt 0:03:46] E94: King's Indian: Classical: 6 Be2 e5 7 0-0: Various Black 7th moves.} f5 {[%emt 0:00:04]} 14. f3 {[%emt 0:00:56]} (14. b3 $5 {[%cal Rf2f3]}) 14... a4 {[%emt 0:00:04]} 15. Bxc5 {[%emt 0:02:06] White has an edge.} bxc5 {[%emt 0:00:05]} 16. Nxa4 {[%emt 0:00:40]} h5 {[%emt 0:01:31]} 17. Nc3 {[%emt 0:10:10]} Bh6 {[%emt 0:00:50] [#]} 18. Qd3 $146 {[%emt 0:01:23]} ({Predecessor:} 18. Rae1 h4 19. Nd1 Nf6 20. Rf2 Bd7 21. Nb1 Nh5 22. Nbc3 Bf4 23. Bd3 Bg3 24. hxg3 hxg3 {½-½ (46) Palatnik,S (2460)-Anand,V (2405) New Delhi 1986}) 18... h4 {[%emt 0:03:39][%mdl 1024] Black has compensation.} 19. Rf2 {[%emt 0:06:30]} Nf6 {[%emt 0:04:44]} 20. Nf1 {[%emt 0:06:22]} Nh5 {[%emt 0:00:50]} 21. g3 {[%emt 0:11:23]} Rf7 {[%emt 0:26:00][%cal Oh6f4]} 22. Rd1 {[%emt 0:15:01]} (22. exf5 $11 {keeps the balance.} Bxf5 23. Ne4) 22... Bd7 {[%emt 0:12:51]} ({Black should try} 22... Rg7 $17) 23. Rg2 {[%emt 0:06:21]} Kh8 {[%emt 0:03:35]} 24. Qc2 {[%emt 0:08:42]} Qf8 {[%emt 0:06:31]} 25. Bd3 {[%emt 0:01:04]} ({Of course not} 25. gxh4 Nf4 26. Rg3 fxe4 $17) 25... Qe7 {[%emt 0:03:48]} 26. Ne2 {[%emt 0:02:51]} (26. Nb5 $11) 26... h3 {[%emt 0:03:19]} 27. Rf2 {[%emt 0:00:17]} Ng7 {[%emt 0:00:28]} (27... f4 $17 28. g4 Nf6) 28. Qc3 {[%emt 0:02:47]} (28. Kh1 $11 {was preferrable.}) 28... Raf8 {[%emt 0:00:50]} 29. b4 {[%emt 0:04:05]} fxe4 {[%emt 0:00:03]} 30. Bxe4 {[%emt 0:00:06]} Nf5 {[%emt 0:00:03]} 31. bxc5 {[%emt 0:02:16]} dxc5 {[%emt 0:00:02]} 32. Nf4 {[%emt 0:01:34]} (32. Bxf5 $14 gxf5 33. f4) 32... Bxf4 $15 {[%emt 0:00:52]} 33. gxf4 {[%emt 0:01:18]} Nd4 {[%emt 0:00:04]} (33... Nd6 $1 $15) 34. fxe5 $11 {[%emt 0:00:48]} Qxe5 {[%emt 0:00:27][%cal Od4e2]} 35. Qe3 {[%emt 0:00:42] Inhibits Ne2+.} Rf4 {[%emt 0:08:01][%cal Od7g4]} 36. Nd2 {[%emt 0:02:44]} Kg7 {[%emt 0:01:51]} 37. Rdf1 {[%emt 0:01:00]} g5 {[%emt 0:00:44]} 38. Kh1 $2 {[%emt 0:00:28]} (38. Qe1 $11 {and White stays safe.}) 38... Qf6 $2 {[%emt 0:01:49]} (38... Bf5 $1 $19 {[%cal Od4f3] Strongly threatening ...Nxf3!} 39. Qe1 Bxe4 40. fxe4 Nb3) 39. Nb3 {[%emt 0:02:51]} (39. Rg1 $11) 39... Nxb3 $1 $15 {[%emt 0:09:39]} 40. Qxb3 {[%emt 0:00:08]} Qd4 {[%emt 0:00:08]} (40... g4 $15) 41. Qd3 {[%emt 0:06:14]} (41. Qc2 $1 $11) 41... Qxd3 {[%emt 0:00:41] Black is much more active.} (41... g4 {keeps more tension.} 42. Kg1 Kh6 43. Qxd4 cxd4 44. Re1 Kg5) 42. Bxd3 {[%emt 0:00:05]} Rd4 {[%emt 0:00:27]} 43. Be2 {[%emt 0:01:14]} Re8 {[%emt 0:02:45]} (43... Rb8 $1 $17) 44. Kg1 $1 $11 {[%emt 0:07:11]} Re3 {[%emt 0:04:17]} 45. Ra1 {[%emt 0:00:15]} Ba4 {[%emt 0:00:35]} 46. Bf1 {[%emt 0:00:39]} Rf4 {[%emt 0:00:49]} 47. Bxh3 {[%emt 0:00:37]} Rxc4 {[%emt 0:00:19]} 48. Rg2 {[%emt 0:07:41]} Kf6 {[%emt 0:00:51]} 49. Rg4 {[%emt 0:02:55]} (49. Rb2 $11) 49... Rxg4+ $1 $17 {[%emt 0:03:08]} 50. Bxg4 {[%emt 0:00:05][%mdl 4096] Endgame KRB-KRB} c4 $1 {[%emt 0:00:18]} 51. Kf2 {[%emt 0:00:19]} Rd3 {[%emt 0:00:28]} 52. f4 $2 {[%emt 0:03:56][%mdl 8192]} (52. Bc8 $17 {is tougher.}) 52... c3 $2 {[%emt 0:09:58]} (52... gxf4 $19 53. Rc1 c3) 53. fxg5+ $11 {[%emt 0:00:42]} Kxg5 {[%emt 0:00:04]} 54. Be2 {[%emt 0:00:21]} Rxd5 {[%emt 0:01:18]} 55. Rg1+ {[%emt 0:03:40]} Kf6 {[%emt 0:01:57]} (55... Kf5 $5 {[%cal Rc3c2]} 56. Ke3 Re5+ 57. Kf3 Bc6+ 58. Kf2 Be4 $15) 56. Ke3 $1 {[%emt 0:00:46]} Re5+ {[%emt 0:00:48]} 57. Kf2 {[%emt 0:01:01]} c2 {[%emt 0:03:20]} 58. Bd3 {[%emt 0:00:33]} Rh5 {[%emt 0:00:07]} (58... Rc5 $5 59. Rc1 $8 Rh5 $15) 59. Ke3 {[%emt 0:02:46]} Rxh2 {[%emt 0:00:23][%cal Oh2g2]} 60. Rg6+ $2 {[%emt 0:00:44][%mdl 8192]} (60. Kd4 $11) 60... Ke5 $1 $19 {[%emt 0:06:35]} 61. Rg5+ {[%emt 0:00:17]} Kd6 {[%emt 0:00:11]} 62. Rg6+ {[%emt 0:00:22]} Kc5 {[%emt 0:00:16]} 63. Rg5+ {[%emt 0:00:03]} Kb6 $1 {[%emt 0:00:39]} 64. Rg1 {[%emt 0:00:04]} c5 {[%emt 0:06:44]} 65. Rc1 {[%emt 0:01:19] [#]} Bb3 $2 {[%emt 0:02:22]} (65... Ka5 $1 $19 {is more deadly.} 66. Bf5 Rg2) 66. Bf5 $17 {[%emt 0:00:07] [#]} c4 {[%emt 0:06:36]} ({Black should play} 66... Rg2 $1 $17 67. Be4 Rg3+ 68. Kd2 c4) 67. Kd4 $1 $11 {[%emt 0:00:21]} Rf2 {[%emt 0:00:47]} 68. Bg6 {[%emt 0:00:55]} Ka5 {[%emt 0:01:06]} 69. Kc3 {[%emt 0:00:42]} Ka4 {[%emt 0:00:06]} 70. Kb2 {[%emt 0:01:46]} Rf3 {[%emt 0:00:07]} 71. Be8+ {[%emt 0:00:29]} Ka5 {[%emt 0:00:03]} 72. Bg6 {[%emt 0:00:21]} Ba4 {[%emt 0:00:03]} 73. Bxc2 {[%emt 0:00:30]} c3+ {[%emt 0:00:03]} 74. Kb1 {[%emt 0:00:27]} Bb5 {[%emt 0:00:22]} 75. Rg1 {[%emt 0:00:28]} Bc4 {[%emt 0:00:26]} 76. Rg5+ {[%emt 0:00:08]} Kb6 {[%emt 0:00:07] aiming for ...Rf1+.} 77. Rg6+ {[%emt 0:00:39]} Kc5 {[%emt 0:00:21]} 78. Rg5+ {[%emt 0:00:09]} Kd6 {[%emt 0:00:06] And now ...Rf1+ would win.} 79. Rg6+ {[%emt 0:00:46]} Ke7 {[%emt 0:00:46] Hoping for ...Rf1+.} 80. Rg1 {[%emt 0:00:31]} Be6 {[%emt 0:00:36]} 81. Rd1 {[%emt 0:00:51]} Bc4 {[%emt 0:00:11]} 82. Kc1 {[%emt 0:01:09]} Ke6 {[%emt 0:00:27]} 83. Kb1 {[%emt 0:00:31]} Ke5 {[%emt 0:00:48]} 84. Kc1 {[%emt 0:00:22]} Rf8 {[%emt 0:01:06]} 85. Rg1 {[%emt 0:00:15]} Rh8 {[%emt 0:03:17]} 86. Rg5+ {[%emt 0:00:28]} Kf4 {[%emt 0:00:13]} 87. Rg1 {[%emt 0:00:35] Inhibits Rh1.} Rh2 {[%emt 0:00:56]} 88. Re1 {[%emt 0:00:09]} Be2 {[%emt 0:00:25]} 89. a4 {[%emt 0:01:01]} Bf3 {[%emt 0:00:58]} 90. Rf1 {[%emt 0:00:25] Bd1 is the strong threat.} Ke3 {[%emt 0:00:32]} 91. a5 {[%emt 0:01:13]} Be2 {[%emt 0:00:42]} 92. Re1 {[%emt 0:01:01] Black must now prevent Bd1.} Kf2 $2 {[%emt 0:00:06][%mdl 8192]} (92... Kd4 $11) 93. Rxe2+ {[%emt 0:00:19]} Kxe2 {[%emt 0:00:04] KR-KB} 94. Be4 $2 {[%emt 0:00:14][%mdl 8192] Prevents Rh1+.} (94. Bf5 $11) 94... Ke3 {[%emt 0:00:11]} 95. Bb1 $2 {[%emt 0:00:39][%mdl 8192]} (95. Bg6 $11 Rf2 96. Be8) 95... Kd4 {[%emt 0:00:45]} 96. a6 {[%emt 0:00:21]} Rh6 $2 {[%emt 0:00:22][%mdl 8192]} (96... Rh8 $11 97. Bg6 Ra8) 97. a7 {[%emt 0:00:19]} Ra6 {[%emt 0:00:04]} 98. Bf5 $2 {[%emt 0:00:11][%mdl 8192]} (98. Bg6 $11 Rxa7 99. Bf5) 98... Rxa7 {[%emt 0:00:05]} 99. Kc2 $2 {[%emt 0:00:10][%mdl 8192]} (99. Bg6 $11 Ra2 100. Bh7) 99... Rf7 $2 {[%emt 0:01:58][%mdl 8192]} (99... Ra2+ $11 100. Kc1 Rg2) 100. Bg6 {[%emt 0:00:13]} Rf2+ {[%emt 0:00:11]} 101. Kd1 $2 {[%emt 0:00:25][%mdl 8192]} (101. Kc1 $11 Rh2 102. Bf5) 101... Kc4 {[%emt 0:00:27] Black mates.} 102. Bc2 {[%emt 0:01:07]} Rf1+ {[%emt 0:00:08]} 103. Ke2 {[%emt 0:00:04]} Rc1 {[%emt 0:00:06]} 104. Bh7 {[%emt 0:00:14]} Kb3 {[%emt 0:00:08] Weighted Error Value: White=0.47/Black=0.31} ({Weaker is} 104... c2 105. Kd2 $11) 0-1

[Event "37th ECCC 2022"]
[Site "Mayrhofen"]
[Date "2022.10.03"]
[Round "1.35"]
[White "Libiszewski, Fabien"]
[Black "Schiestl, Josef"]
[Result "1-0"]
[ECO "A05"]
[WhiteElo "2512"]
[BlackElo "2123"]
[Annotator "TA"]
[PlyCount "47"]
[EventDate "2022.10.03"]
[EventType "team-tourn"]
[EventCountry "AUT"]
[SourceTitle "playchess.com"]
[Source "ChessBase"]
[SourceQuality "1"]
[TimeControl "40/5400+30:1800+30"]

{[%evp 18,47,27,17,83,80,102,89,95,82,81,97,98,95,134,142,150,138,170,138,227,197,211,218,444,415,416,414,552,553,987,949]} 1. Nf3 {[%emt 0:00:03]} Nf6 {[%emt 0:00:28]} 2. g3 {[%emt 0:00:13]} g6 {[%emt 0:00:09]} 3. b3 {[%emt 0:00:15]} Bg7 {[%emt 0:00:21]} 4. Bb2 {[%emt 0:00:05]} c5 {[%emt 0:01:06]} 5. c4 {[%emt 0:04:05]} Nc6 {[%emt 0:02:03]} 6. Bg2 {[%emt 0:00:37]} O-O {[%emt 0:01:42]} 7. O-O {[%emt 0:01:57]} d6 {[%emt 0:02:40]} 8. d4 {[%emt 0:01:41]} cxd4 {[%emt 0:07:44]} 9. Nxd4 {[%emt 0:00:41]} Bd7 {[%emt 0:00:46]} 10. Nc3 {[%emt 0:01:20]} a5 {[%emt 0:16:47] E60: King's Indian: Unusual lines and Fianchetto Variation without Nc3.} (10... a6 $11 {keeps the balance.}) 11. Ndb5 $16 {[%emt 0:10:00]} Qc8 {[%emt 0:14:34] [#]} 12. Qd2 $146 {[%emt 0:26:30]} ({Predecessor:} 12. e4 Bh3 13. Qe2 Bxg2 14. Kxg2 Nd7 15. Nd5 Qd8 16. Rad1 Bxb2 17. Qxb2 Nc5 18. Rfe1 {1-0 (27) Panchenko,A (2346)-Shmat,S (2076) Kiev 2007}) 12... Bh3 {[%emt 0:07:08] White is better.} 13. Rac1 {[%emt 0:02:26] White is more active.} Bxg2 {[%emt 0:00:53]} 14. Kxg2 {[%emt 0:00:08]} Qf5 {[%emt 0:02:51]} 15. f3 {[%emt 0:01:49] Against Ne4} h5 {[%emt 0:06:16]} 16. e4 {[%emt 0:07:39]} Qd7 {[%emt 0:01:37]} 17. Na4 {[%emt 0:01:46][%cal Bc3a4,Ba4c5,Bc5d7][%mdl 32]} Qd8 {[%emt 0:00:33] Against Nb6} 18. Rfd1 {[%emt 0:00:51]} Nd7 {[%emt 0:05:38]} (18... b6 $16 19. Bxf6 Bxf6) 19. Bxg7 {[%emt 0:01:50]} Kxg7 {[%emt 0:00:02]} 20. c5 {[%emt 0:01:43]} Nxc5 $2 {[%emt 0:07:12]} (20... h4 21. cxd6 e5) 21. Qb2+ {[%emt 0:06:54]} Kg8 {[%emt 0:07:25]} 22. Nxc5 {[%emt 0:01:29]} Qb6 {[%emt 0:00:19] [#]} 23. Nxd6 {[%emt 0:00:28]} exd6 {[%emt 0:00:42]} (23... Rfd8 24. Ndxb7) 24. Nd7 {[%emt 0:00:11] White took control after the opening.  Weighted Error Value: White=0.10 (very precise) /Black=0.56} 1-0

[Event "37th ECCC 2022"]
[Site "Mayrhofen"]
[Date "2022.10.03"]
[Round "1.36"]
[White "Spindelberger, Paul"]
[Black "Tarlev, Konstantin"]
[Result "0-1"]
[ECO "B84"]
[WhiteElo "1983"]
[BlackElo "2577"]
[Annotator "TA"]
[PlyCount "72"]
[EventDate "2022.10.03"]
[EventType "team-tourn"]
[EventCountry "AUT"]
[SourceTitle "playchess.com"]
[Source "ChessBase"]
[SourceQuality "1"]
[TimeControl "40/5400+30:1800+30"]

{[%evp 15,72,0,0,0,0,-5,0,-25,-33,-48,-47,-41,-54,-56,-47,-50,-65,-50,-41,-63,-67,-68,-37,-67,-37,-30,-39,-44,-45,-38,-28,-63,-73,-77,-65,-169,-158,-164,-157,-147,-106,-189,-75,-103,-72,-97,-95,-157,-146,-142,-143,-156,-154,-205,-164,-262,-258,-252,-210]} 1. e4 {[%emt 0:00:11]} c5 {[%emt 0:00:03]} 2. Nf3 {[%emt 0:00:15]} d6 {[%emt 0:00:16]} 3. d4 {[%emt 0:00:50]} cxd4 {[%emt 0:00:04]} 4. Nxd4 {[%emt 0:00:17]} Nf6 {[%emt 0:00:06]} 5. Nc3 {[%emt 0:00:48]} a6 {[%emt 0:00:06]} 6. Be2 {[%emt 0:08:28]} e6 {[%emt 0:02:56]} 7. Be3 {[%emt 0:03:35] is more profitable than 7.0-0 at the moment.} Be7 {[%emt 0:02:28]} 8. O-O {[%emt 0:07:50]} O-O {[%emt 0:00:25]} 9. f3 {[%emt 0:04:55] B84: Sicilian Scheveningen: 6 Be2 a6, lines without early Be3.} b5 {[%emt 0:01:11]} 10. a3 {[%emt 0:00:21]} Bb7 {[%emt 0:00:15]} 11. Qd2 {[%emt 0:03:55] The position is equal.} Nbd7 {[%emt 0:03:19]} 12. Nb3 {[%emt 0:17:50]} Qc7 {[%emt 0:03:05]} 13. Rad1 {[%emt 0:13:50]} Rfd8 {[%emt 0:06:49]} (13... d5 14. exd5 Nxd5 15. Nxd5 Bxd5 16. Bf4 Qb7) 14. Bd3 {[%emt 0:14:26] [#]} d5 $146 {[%emt 0:09:50]} (14... Rac8 15. Qf2 d5 16. exd5 Nxd5 17. Nxd5 Bxd5 18. Nd4 Ne5 19. Rfe1 Bf6 20. Bf1 Ng6) ({Predecessor:} 14... Rac8 15. Qf2 d5 16. exd5 Nxd5 17. Nxd5 Bxd5 18. Nd4 Ne5 19. Rfe1 Bf6 20. Bf1 Ng6 {0-1 (43) Slepankova,R (2005)-Kalod,R (2210) Prague 1995}) 15. exd5 {[%emt 0:02:46]} Nxd5 {[%emt 0:00:52]} 16. Nxd5 {[%emt 0:01:11]} Bxd5 {[%emt 0:00:05]} 17. Nc1 {[%emt 0:03:22]} Nc5 {[%emt 0:05:31][%cal Bd7c5,Bc5a4,Ba4b6,Bb6c4][%mdl 32]} 18. Qf2 {[%emt 0:03:17]} Rab8 {[%emt 0:05:40]} 19. Rd2 {[%emt 0:03:44]} Na4 {[%emt 0:07:48] Black is more active.} 20. c3 $1 {[%emt 0:01:16]} Nb6 $36 {[%emt 0:01:24][%mdl 2048] Black is more active.} 21. Rfd1 {[%emt 0:01:48]} Nc4 {[%emt 0:00:44]} (21... g6 {keeps more tension.} 22. f4 Nc4 23. Bxc4 bxc4 24. Bd4 Rb5) 22. Bxc4 {[%emt 0:00:58]} Bxc4 {[%emt 0:00:30]} (22... bxc4 23. Ne2 a5 24. Qg3 Qxg3 25. Nxg3 g6) (22... bxc4 {seems wilder.} 23. Ne2 g6 24. h3 Ba8) 23. Rxd8+ {[%emt 0:04:11]} (23. Nd3) 23... Rxd8 {[%emt 0:00:10]} (23... Bxd8 24. Nd3) 24. Rxd8+ {[%emt 0:00:42]} Qxd8 {[%emt 0:00:30]} 25. Qd2 {[%emt 0:00:23] Against Qd1+} (25. Qc2 $15) 25... Qxd2 $19 {[%emt 0:02:51]} 26. Bxd2 {[%emt 0:00:01][%mdl 4096] Endgame KBB-KBN} Bc5+ {[%emt 0:00:06]} 27. Kh1 {[%emt 0:00:12]} e5 {[%emt 0:00:11]} 28. g3 {[%emt 0:01:16]} (28. b3 Bf1 29. b4) (28. b3 $17 Bf1 29. b4) 28... Bf1 {[%emt 0:03:51]} (28... a5 29. Kg2 a4) (28... f6 $19 {has better winning chances. Hoping for ...a5.} 29. Kg2 Bb6) 29. Nb3 $17 {[%emt 0:00:50]} Bf2 {[%emt 0:06:52]} 30. Na5 {[%emt 0:00:29]} f6 {[%emt 0:03:11]} 31. Nb7 {[%emt 0:01:05]} (31. Nc6) (31. Nc6 $142) 31... Kf7 {[%emt 0:04:22] Strongly threatening ...Ke6.} 32. Nd6+ {[%emt 0:00:32]} Ke6 {[%emt 0:00:10]} 33. Ne4 {[%emt 0:00:10]} Bb6 {[%emt 0:00:06] aiming for ...f5.} 34. Be1 {[%emt 0:00:45]} (34. b4) (34. g4 $17 {was necessary.}) 34... Kd5 {[%emt 0:04:01]} 35. Nd2 {[%emt 0:00:11]} (35. b4) (35. b4 {was worth a try.}) 35... Bh3 $19 {[%emt 0:00:24]} 36. b3 {[%emt 0:01:11]} Be3 {[%emt 0:00:53] Weighted Error Value: White=0.21 (precise) /Black=0.12 (very precise)} 0-1

[Event "37th ECCC 2022"]
[Site "Mayrhofen"]
[Date "2022.10.03"]
[Round "1.37"]
[White "Meshkovs, Nikita"]
[Black "Carlsen, Magnus"]
[Result "1/2-1/2"]
[ECO "E10"]
[WhiteElo "2566"]
[BlackElo "2856"]
[Annotator "TA"]
[PlyCount "87"]
[EventDate "2022.10.03"]
[EventType "team-tourn"]
[EventCountry "AUT"]
[SourceTitle "playchess.com"]
[Source "ChessBase"]
[SourceQuality "1"]
[TimeControl "40/5400+30:1800+30"]

{[%evp 16,87,7,17,28,25,25,13,17,18,24,24,18,25,16,16,22,5,14,7,45,39,55,47,52,43,44,47,54,51,43,63,64,25,20,29,20,6,11,0,0,0,0,0,14,0,0,0,0,0,0,0,0,0,0,0,0,0,0,0,0,0,0,0,8,0,0,0,0,0,0,0,0,0]} 1. d4 {[%emt 0:00:04]} Nf6 {[%emt 0:00:10]} 2. c4 {[%emt 0:00:11]} e6 {[%emt 0:00:11]} 3. Nf3 {[%emt 0:00:11]} d5 {[%emt 0:00:28]} 4. g3 {[%emt 0:00:18]} Bb4+ {[%emt 0:08:04]} 5. Bd2 {[%emt 0:00:59]} Be7 {[%emt 0:00:28]} 6. Bg2 {[%emt 0:00:41]} c6 {[%emt 0:01:31]} 7. Qc2 {[%emt 0:01:51]} O-O {[%emt 0:05:25]} 8. O-O {[%emt 0:00:38]} b6 {[%emt 0:02:55]} 9. Bf4 {[%emt 0:10:48]} Ba6 {[%emt 0:02:15] E06: Closed Catalan: Early deviations.} 10. cxd5 {[%emt 0:09:36]} cxd5 {[%emt 0:04:41]} 11. Rc1 {[%emt 0:03:52]} Nbd7 {[%emt 0:02:21]} 12. Nc3 {[%emt 0:03:53][%cal Bb1c3,Bc3b5,Bb5c7][%mdl 32]} Nh5 {[%emt 0:08:15]} 13. Qa4 {[%emt 0:07:08]} Nxf4 {[%emt 0:06:59]} 14. Qxa6 {[%emt 0:00:11]} Nxg2 {[%emt 0:00:08]} 15. Kxg2 {[%emt 0:00:03]} Qc8 {[%emt 0:03:07]} 16. Qxc8 {[%emt 0:01:32]} (16. Qd3 $5 {[%cal Rc3d5]}) 16... Rfxc8 {[%emt 0:00:07]} 17. Nb5 {[%emt 0:00:04]} Rd8 {[%emt 0:00:37]} 18. Nc7 {[%emt 0:14:53]} Rab8 {[%emt 0:01:48] [#]} 19. Rc6 $146 {[%emt 0:00:49]} ({Predecessor:} 19. a4 Rb7 20. Rc3 Bd6 21. Rac1 Kf8 22. Ne1 Ke7 23. Nd3 f6 24. Nb5 Nb8 25. b4 {1-0 (44) Saduakassova,D (2495)-Bhambure,S (2194) Abu Dhabi 2018}) 19... Rb7 {[%emt 0:04:03]} 20. Na6 {[%emt 0:00:19]} g5 {[%emt 0:00:26]} 21. Rac1 {[%emt 0:01:50]} g4 {[%emt 0:00:38]} 22. Ne1 {[%emt 0:03:23] Pair of Knights!} Nf6 {[%emt 0:01:33]} 23. Nd3 {[%emt 0:06:34]} Bd6 {[%emt 0:01:41]} 24. Rc8 {[%emt 0:01:54]} Rxc8 {[%emt 0:00:06]} 25. Rxc8+ {[%emt 0:00:05]} Kg7 {[%emt 0:00:10]} 26. h3 {[%emt 0:02:54] The position is equal.} h5 {[%emt 0:01:22][%cal Bh7h5,Bh5g4][%mdl 32]} 27. hxg4 {[%emt 0:02:11]} hxg4 {[%emt 0:00:02]} 28. Nab4 {[%emt 0:01:01]} a5 {[%emt 0:06:56]} 29. Nc6 {[%emt 0:00:21]} Nd7 {[%emt 0:00:25]} 30. a4 {[%emt 0:06:57]} Kf6 {[%emt 0:02:13]} 31. f3 {[%emt 0:05:40]} gxf3+ {[%emt 0:00:33]} 32. exf3 {[%emt 0:02:41]} Kg7 {[%emt 0:00:34]} 33. Kf2 {[%emt 0:01:01]} Nf6 {[%emt 0:04:17]} 34. g4 {[%emt 0:02:22]} Rc7 {[%emt 0:02:25]} 35. Rxc7 {[%emt 0:00:14]} Bxc7 $11 {[%emt 0:00:02][%mdl 4096] Endgame KBN-KNN} 36. Ke3 {[%emt 0:05:06]} Ne8 {[%emt 0:00:47]} 37. Na7 {[%emt 0:00:57]} Bb8 {[%emt 0:00:43]} 38. Nb5 {[%emt 0:00:07]} Nf6 {[%emt 0:00:45]} 39. b3 {[%emt 0:03:34]} Nd7 {[%emt 0:02:13]} 40. f4 {[%emt 0:00:42]} Nf6 {[%emt 0:00:59]} 41. Nf2 {[%emt 0:03:10]} Ng8 {[%emt 0:00:10]} 42. Nd3 {[%emt 0:02:04]} Nf6 {[%emt 0:00:06]} 43. Nf2 {[%emt 0:00:04]} Ng8 {[%emt 0:00:05]} 44. Nd3 {[%emt 0:00:04] Weighted Error Value: White=0.03 (flawless) /Black=0.02 (flawless)} 1/2-1/2

[Event "37th ECCC 2022"]
[Site "Mayrhofen"]
[Date "2022.10.03"]
[Round "1.38"]
[White "Tari, Aryan"]
[Black "Niemi, Mikko"]
[Result "1-0"]
[ECO "B06"]
[WhiteElo "2656"]
[BlackElo "2306"]
[Annotator "TA"]
[PlyCount "49"]
[EventDate "2022.10.03"]
[EventType "team-tourn"]
[EventCountry "AUT"]
[SourceTitle "playchess.com"]
[Source "ChessBase"]
[SourceQuality "1"]
[TimeControl "40/5400+30:1800+30"]

{[%evp 11,49,28,30,16,18,13,114,113,119,107,108,22,73,11,119,118,125,110,135,58,128,121,129,112,142,132,237,249,397,389,385,347,1132,1125,1052,1026,29990,29991,29991,1004]} 1. e4 {[%emt 0:00:03]} d6 {[%emt 0:00:30]} 2. d4 {[%emt 0:00:11]} g6 {[%emt 0:00:24]} 3. Nf3 {[%emt 0:00:42]} Bg7 {[%emt 0:00:19]} 4. Nc3 {[%emt 0:00:19]} a6 {[%emt 0:01:28]} 5. Be2 {[%emt 0:01:56]} b5 {[%emt 0:01:13]} 6. O-O {[%emt 0:00:38]} Bb7 {[%emt 0:01:08]} 7. e5 {[%emt 0:00:08][%cal Oe5e6] B06: Modern Defence.} e6 {[%emt 0:04:11]} 8. d5 {[%emt 0:00:05] [#]} dxe5 $146 {[%emt 0:21:32]} (8... exd5 $1 $11 9. Bg5 (9. Nxd5 dxe5 10. c4 Nd7 $11) 9... Qd7) ({Predecessor:} 8... exd5 9. e6 h6 10. exf7+ Kxf7 11. Nxd5 Nf6 12. Ne3 Nbd7 13. a4 Re8 14. axb5 axb5 15. Rxa8 Qxa8 16. Bxb5 {½-½ (44) Almeida,R (2345)-Cleto,D (2204) ICCF email 2016}) 9. dxe6 $1 $16 {[%emt 0:03:17] White is better.} f6 {[%emt 0:05:16]} 10. Be3 {[%emt 0:12:57]} Ne7 {[%emt 0:06:35]} 11. Bc5 {Against Qd6} (11. Qxd8+ $16 Kxd8 12. Bc5) 11... Nbc6 {[%emt 0:04:31]} (11... Nd5 $11 {remains equal.}) 12. b4 {[%emt 0:18:51] White is much more active. The black rooks are badly placed.} (12. a4 $16 b4 13. Na2 (13. Ne4 Qc8 $14)) 12... Nf5 {[%emt 0:08:12]} (12... Qxd1 $11 13. Raxd1 (13. Rfxd1 f5 $11) 13... Bc8) 13. a4 {[%emt 0:12:25]} bxa4 {[%emt 0:01:12]} 14. Bc4 {[%emt 0:03:15]} (14. Nxa4 Qc8 $14) 14... Bf8 {[%emt 0:06:07]} 15. Ne4 {[%emt 0:14:04]} (15. Rxa4 $6 Bxc5 16. bxc5 Qxd1 17. Rxd1 Ncd4 $11) (15. Nd5 $1 $16 {[%cal Rd5f6] Nxf6+! would kill now.} Bxc5 16. bxc5) 15... Ncd4 {[%emt 0:07:18]} (15... Nd6 $14 16. Bxd6 cxd6) 16. Nxd4 {[%emt 0:02:12]} Bxe4 {[%emt 0:08:48] [#]} 17. e7 $1 {[%emt 0:05:00] The board is on fire.} ({Don't play} 17. Nxf5 Qxd1 18. Ng7+ (18. Raxd1 Bxf5 19. Bxf8 Rxf8 $14) 18... Bxg7 $14) 17... Bxe7 {[%emt 0:01:55][%cal Rf5d4] [#]} 18. Qg4 $1 {[%emt 0:03:09] Black must now prevent Ne6.} ({Worse is} 18. Ne6 Qxd1 19. Rfxd1 Bxc5 20. Nxc7+ Ke7 21. bxc5 Rac8 22. Nd5+ Bxd5 23. Rxd5 Rhd8 24. Rxd8 Kxd8 $17) 18... Bxc5 {[%emt 0:01:33]} (18... Nxd4 $16 19. Qxe4 Rb8) 19. Ne6 $18 {[%emt 0:00:16]} Qb8 {[%emt 0:04:08]} (19... Bxf2+ $2 20. Rxf2 Qd6 21. Qxe4 $18) (19... Qc8 $142) 20. Qxe4 {[%emt 0:02:17]} Bd6 {[%emt 0:00:50]} 21. Nxc7+ {[%emt 0:01:13][%mdl 64] Decoy} ({Less strong is} 21. Qc6+ Ke7 $16) 21... Bxc7 $2 {[%emt 0:01:27]} (21... Ke7) 22. Qc6+ {[%emt 0:00:06]} Kd8 {[%emt 0:04:06]} 23. Qxf6+ {[%emt 0:00:07]} Kd7 {[%emt 0:00:16]} 24. Be6+ {[%emt 0:00:10]} Kc6 {[%emt 0:01:20]} 25. Bxf5+ {[%emt 0:00:15] Weighted Error Value: White=0.19 (very precise) /Black=0.67} (25. Bd5+ $142 Kxd5 26. c4+ Ke4 27. Rfe1+ Kd4 28. Qc6 Qb6 29. Qd5+ Kc3 30. Rec1+ Kxb4 31. c5 Nd6 32. Qa2 Qc6 33. Rab1+ Ka5 34. Qd2#) 1-0